bitfinex/quotes_ETHUSD_20240730
["timestamp","ask_amount","ask_price","bid_price","bid_amount"]
[1722306486596,13.25437451,3298.5,3298.4,0.00181085]
[1722306486792,14.81487039,3298.5,3298.4,0.00181085]
[1722306486993,12.38953039,3298.5,3298.4,0.00181085]
[1722306487202,14.81487039,3298.5,3298.4,0.00181085]
[1722306487410,13.25437451,3298.5,3298.4,0.00181085]
[1722306487616,10.82903451,3298.5,3298.4,0.00181085]
[1722306487833,14.81487039,3298.5,3298.4,0.00181085]
[1722306488050,13.25437451,3298.5,3298.4,0.00181085]
[1722306488252,14.81487039,3298.5,3298.4,0.00181085]
[1722306488416,10.82903451,3298.5,3298.4,0.00181085]
[1722306488741,13.25437451,3298.5,3298.4,0.00181085]
[1722306489041,10.82903451,3298.5,3298.4,0.00181085]
[1722306489225,12.07668095,3298.5,3298.4,0.00181085]
[1722306489421,10.82903451,3298.5,3298.4,0.00181085]
[1722306490010,12.07668095,3298.5,3298.4,0.00181085]
[1722306490409,10.82903451,3298.5,3298.4,0.00181085]
[1722306490998,8.48113451,3298.5,3298.4,0.00181085]
[1722306491224,9.41653888,3298.5,3298.4,0.00181085]
[1722306491427,9.41657052,3298.5,3298.4,0.00181085]
[1722306491647,8.48113451,3298.5,3298.4,0.00181085]
[1722306492578,9.41635659,3298.5,3298.4,0.00181085]
[1722306493400,8.48113451,3298.5,3298.4,0.00181085]
[1722306493613,9.41635659,3298.5,3298.4,0.00181085]
[1722306494561,8.48113451,3298.5,3298.4,0.00181085]
[1722306496636,9.41535613,3298.5,3298.4,0.00181085]
[1722306496948,8.48113451,3298.5,3298.4,0.00181085]
[1722306497152,9.41535613,3298.5,3298.4,0.00181085]
[1722306497454,11.84069613,3298.5,3298.4,0.00181085]
[1722306497658,10.90647451,3298.5,3298.4,0.00181085]
[1722306497863,9.41535613,3298.5,3298.4,0.00181085]
[1722306498033,8.48113451,3298.5,3298.4,0.00181085]
[1722306498889,18.91341451,3298.5,3298.4,8.5e-07]
[1722306499096,23.20719775,3298.5,3297.8,5.01239669]
[1722306499374,12.40612,3297.9,3297.8,5.01239669]
[1722306499577,4.85244,3297.3,3297.2,0.1463045]
[1722306499896,15.40788,3297.3,3297.2,0.1463045]
[1722306500033,16.03471388,3297.3,3297.2,0.1463045]
[1722306500878,13.60849388,3297.3,3297.2,0.1463045]
[1722306501189,13.60849388,3297.3,3294.9,2.42794]
[1722306501190,5.5961,3297.2,3295.2,2.4978]
[1722306501335,2.42682,3296.5,3295.3,0.31046086]
[1722306501534,6.88299942,3297.2,3295.3,0.31046086]
[1722306501535,7.44623641,3297.1,3295.9,2.4978]
[1722306501733,2.42652,3297.0,3296.1,2.42705]
[1722306501973,0.07623641,3296.9,3296.2,0.30944014]
[1722306502134,0.07623641,3296.9,3296.5,2.4135]
[1722306502331,2.42635,3297.2,3296.5,2.4135]
[1722306502670,0.07571973,3297.1,3296.5,2.4135]
[1722306503186,2.42658,3296.9,3296.5,2.4135]
[1722306503669,2.42646,3297.0,3296.5,2.4135]
[1722306503975,2.42666,3296.8,3296.5,2.4135]
[1722306504144,2.4268,3296.6,3295.8,2.3849]
[1722306504333,2.4268,3296.6,3295.8,5.054959]
[1722306504978,0.07582876,3296.5,3295.8,5.054959]
[1722306505155,2.50263876,3296.5,3295.8,2.627639]
[1722306505354,2.50263876,3296.5,3295.9,0.2627639]
[1722306505567,0.07582876,3296.5,3295.9,0.2627639]
[1722306505767,3.0,3297.2,3295.8,2.3849]
[1722306505975,2.42724,3296.0,3295.8,2.3849]
[1722306506178,2.42679,3296.6,3295.3,0.24978]
[1722306506361,2.42747,3295.7,3295.3,0.24978]
[1722306506700,2.42792,3295.0,3294.6,2.4685]
[1722306506986,2.42777,3295.2,3294.6,2.4685]
[1722306507184,0.07576013,3294.9,3294.6,2.4685]
[1722306507354,2.42794,3295.0,3294.6,2.4685]
[1722306507584,0.07567936,3294.8,3294.6,2.71535]
[1722306507868,2.42788,3295.1,3294.6,2.71535]
[1722306508080,2.42763,3295.4,3294.6,2.71535]
[1722306508369,2.42753,3295.6,3294.6,2.71535]
[1722306508583,2.42747,3295.7,3294.8,2.42804]
[1722306508747,2.5026839,3295.5,3294.9,0.06069011]
[1722306508949,2.42764,3295.4,3294.7,0.271535]
[1722306509177,2.42772,3295.3,3294.7,0.271535]
[1722306509363,2.42798,3295.0,3294.7,0.271535]
[1722306509564,2.42798,3295.0,3294.6,2.4685]
[1722306509764,2.50238613,3294.9,3294.6,2.4685]
[1722306509947,2.50238613,3294.9,3293.8,0.1463045]
[1722306509948,2.50240613,3294.9,3294.0,2.43950391]
[1722306510168,0.07438613,3294.9,3294.0,2.3788]
[1722306510472,7.37,3295.6,3294.1,0.54395017]
[1722306510473,2.42792,3295.0,3294.1,0.54395017]
[1722306510846,0.0743942,3294.9,3294.1,0.54395017]
[1722306511072,0.0743942,3294.9,3294.4,2.42835]
[1722306511276,2.42787,3295.1,3294.5,0.06070045]
[1722306511500,0.07433356,3294.8,3294.1,0.54395017]
[1722306511670,2.428,3294.9,3294.2,0.29227502]
[1722306511873,0.07433356,3294.7,3294.3,0.06070045]
[1722306512069,2.42788,3295.1,3294.3,0.06070045]
[1722306512329,0.07420824,3294.6,3294.2,2.72074502]
[1722306512486,2.42793,3295.0,3294.3,0.32646952]
[1722306512821,2.42808,3294.8,3294.1,0.54395017]
[1722306513034,0.07424058,3294.9,3293.3,2.4647]
[1722306513310,2.42851,3294.2,3293.3,2.4647]
[1722306513525,0.55,3294.7,3293.3,2.4647]
[1722306513668,0.07397371,3294.1,3293.3,4.89383]
[1722306513871,2.42858,3294.1,3293.3,4.89386]
[1722306514179,0.07397371,3294.0,3293.3,2.4647]
[1722306514367,0.07397371,3294.0,3293.3,4.89385]
[1722306514567,2.42822,3294.6,3293.4,0.06071439]
[1722306514771,2.42808,3294.8,3294.0,2.42862]
[1722306515018,2.42808,3294.8,3294.1,0.30963951]
[1722306515594,2.42793,3295.0,3294.1,0.30963951]
[1722306515595,2.42815,3294.7,3294.1,0.30963951]
[1722306515809,2.42822,3294.6,3294.1,0.06070669]
[1722306516018,2.4281,3294.8,3294.0,4.78293]
[1722306516182,2.42814,3294.8,3294.0,2.3543]
[1722306516520,2.42799,3294.9,3294.0,2.3543]
[1722306516732,2.42799,3294.9,3294.1,2.42858]
[1722306516903,2.42784,3295.2,3294.2,2.48920346]
[1722306517078,2.42784,3295.2,3294.0,2.60436045]
[1722306517079,2.42792,3295.0,3294.3,0.06070273]
[1722306517423,2.42822,3294.6,3294.0,2.60436045]
[1722306517586,2.42799,3294.9,3294.0,2.60436045]
[1722306517787,2.42813,3294.8,3294.0,2.60436045]
[1722306518014,2.42822,3294.6,3294.1,0.50330805]
[1722306518177,2.42829,3294.5,3294.0,2.60436045]
[1722306518714,2.42827,3294.6,3294.0,2.60436045]
[1722306519122,2.42782,3295.2,3294.0,2.60436045]
[1722306519424,7.37,3295.3,3294.0,2.60436045]
[1722306519425,2.42836,3294.5,3294.0,2.3543]
[1722306520186,2.42822,3294.6,3293.8,0.1463045]
[1722306520489,2.42838,3294.4,3293.8,0.1463045]
[1722306520830,2.42822,3294.6,3293.8,0.1463045]
[1722306521044,2.42818,3294.7,3293.8,2.83261195]
[1722306521397,0.55,3295.1,3293.8,0.40382195]
[1722306521599,2.42824,3294.6,3293.8,2.83261195]
[1722306521837,2.42824,3294.6,3293.8,2.5750945]
[1722306522047,2.42824,3294.6,3293.9,2.42872]
[1722306522395,2.4283,3294.5,3293.8,0.1463045]
[1722306522830,2.42824,3294.6,3293.8,2.5750445]
[1722306523026,2.42824,3294.6,3293.9,2.92909145]
[1722306523211,2.4283,3294.5,3293.9,0.50039145]
[1722306523413,2.42825,3294.6,3293.8,0.1463045]
[1722306523645,2.42825,3294.6,3293.9,2.42869]
[1722306523808,2.42815,3294.7,3293.8,0.1463045]
[1722306524007,2.42815,3294.7,3293.8,2.5751045]
[1722306524247,2.42836,3294.4,3293.8,0.1463045]
[1722306524404,2.42822,3294.6,3293.8,0.1463045]
[1722306524602,0.55,3295.2,3293.8,0.1463045]
[1722306524810,2.42816,3294.7,3293.8,0.1463045]
[1722306525005,2.42836,3294.4,3293.8,0.1463045]
[1722306525345,2.42873,3293.9,3293.8,0.1463045]
[1722306525552,2.42867,3294.0,3293.8,0.1463045]
[1722306525706,2.42851,3294.2,3293.8,0.1463045]
[1722306525906,2.42851,3294.2,3293.8,2.5643045]
[1722306526129,7.37,3294.7,3293.8,2.5643045]
[1722306526341,5.4904,3295.1,3293.8,2.5643045]
[1722306526567,0.55,3295.0,3293.8,2.5643045]
[1722306526770,2.42841,3294.4,3293.8,2.5643045]
[1722306526968,2.42844,3294.3,3293.8,2.5643045]
[1722306527543,2.42852,3294.2,3293.8,2.5643045]
[1722306527736,2.42857,3294.2,3293.8,2.5643045]
[1722306528045,3.55,3295.0,3293.8,2.5643045]
[1722306528046,2.42863,3294.1,3293.8,2.5643045]
[1722306528246,2.42873,3293.9,3293.8,0.1463045]
[1722306528430,4.85746,3293.9,3293.8,0.1463045]
[1722306528634,2.42873,3293.9,3293.8,0.1463045]
[1722306528871,0.07124196,3293.9,3293.8,0.1463045]
[1722306529071,2.49997196,3293.9,3293.8,0.1463045]
[1722306529448,4.92870196,3293.9,3293.8,0.1463045]
[1722306529705,5.47870196,3293.9,3293.8,0.1463045]
[1722306532096,3.04997196,3293.9,3293.8,0.1463045]
[1722306533191,0.07124196,3293.9,3293.8,0.1463045]
[1722306533400,2.42858,3294.1,3293.8,0.1463045]
[1722306533572,0.07109609,3293.9,3293.8,0.1463045]
[1722306533770,2.42859,3294.1,3293.8,0.1463045]
[1722306533992,9.79808,3294.8,3293.9,2.42873]
[1722306534161,2.42794,3295.0,3294.0,0.25750345]
[1722306534357,7.37,3295.4,3293.8,0.1463045]
[1722306534358,2.42814,3294.7,3293.8,0.1463045]
[1722306534584,7.37,3295.4,3293.8,0.1463045]
[1722306534783,2.42827,3294.6,3293.8,2.5750645]
[1722306534990,7.37,3295.4,3293.8,2.5750645]
[1722306535188,2.42829,3294.5,3293.8,0.40381095]
[1722306535385,2.42816,3294.7,3293.8,0.1463045]
[1722306535609,2.42816,3294.7,3294.0,2.42865]
[1722306535790,7.37,3295.4,3293.9,2.42865]
[1722306535977,2.42838,3294.4,3293.8,0.1463045]
[1722306536960,2.42837,3294.4,3293.8,0.1463045]
[1722306537204,2.3635,3294.8,3293.8,0.1463045]
[1722306537414,0.55,3294.3,3293.8,0.1463045]
[1722306537617,2.42851,3294.2,3293.8,0.1463045]
[1722306537906,2.9784,3294.4,3293.8,0.1463045]
[1722306538198,2.42838,3294.4,3293.8,0.1463045]
[1722306538573,4.85746,3293.9,3293.8,0.1463045]
[1722306538775,2.42873,3293.9,3293.8,0.1463045]
[1722306538985,5.40746,3293.9,3293.8,0.1463045]
[1722306539162,2.97873,3293.9,3293.8,0.1463045]
[1722306539562,2.42868,3294.0,3293.8,0.1463045]
[1722306539761,2.42848,3294.3,3293.8,0.1463045]
[1722306540000,2.42865,3294.0,3293.8,0.1227045]
[1722306540207,3.0,3294.1,3293.8,0.1227045]
[1722306540504,2.42858,3294.1,3293.8,0.1227045]
[1722306540666,2.42854,3294.2,3293.8,0.1227045]
[1722306540866,5.42844,3294.3,3293.8,0.1227045]
[1722306541180,2.42859,3294.1,3293.8,0.1227045]
[1722306541377,2.42838,3294.4,3293.8,0.1227045]
[1722306541609,2.4283,3294.5,3293.8,0.1227045]
[1722306541809,3.0,3294.6,3293.8,0.1227045]
[1722306542207,2.42848,3294.3,3293.8,0.1227045]
[1722306542399,2.42845,3294.3,3293.8,0.1227045]
[1722306542803,2.42871,3294.0,3293.8,0.1227045]
[1722306543008,2.4699,3295.0,3293.8,0.1227045]
[1722306543009,2.42873,3293.9,3293.8,0.1227045]
[1722306543901,2.49749061,3293.9,3293.8,0.1227045]
[1722306544928,4.92622061,3293.9,3293.8,0.1227045]
[1722306545529,7.90495061,3293.9,3293.8,0.1227045]
[1722306545763,10.90495061,3293.9,3293.8,0.1227045]
[1722306546725,13.33368061,3293.9,3293.8,0.1227045]
[1722306547052,14.26657876,3293.9,3293.8,0.1227045]
[1722306547263,4.85938,3292.6,3292.5,5.16942149]
[1722306547427,2.42969,3292.6,3292.5,5.16942149]
[1722306547629,2.49774405,3292.6,3292.5,5.16942149]
[1722306547982,0.06805405,3292.6,3292.5,5.16942149]
[1722306548122,2.49774405,3292.6,3292.5,5.16942149]
[1722306548759,0.06805405,3292.6,3292.5,5.16942149]
[1722306549174,2.42955,3292.8,3292.5,5.16942149]
[1722306549175,2.42946,3292.9,3292.5,5.16942149]
[1722306549469,4.85938,3292.6,3292.5,5.16942149]
[1722306549666,5.40938,3292.6,3292.5,5.16942149]
[1722306549867,0.61766406,3292.8,3292.5,5.16942149]
[1722306549868,2.42955,3292.8,3292.5,5.16942149]
[1722306550025,2.49734999,3292.6,3292.5,5.16942149]
[1722306550230,4.85938,3292.6,3292.5,5.16942149]
[1722306550461,4.92703999,3292.6,3292.5,5.16942149]
[1722306550760,8.47703999,3292.6,3292.5,5.16942149]
[1722306551383,10.90672999,3292.6,3292.5,5.16942149]
[1722306552324,16.53241999,3292.6,3292.5,0.61362149]
[1722306552523,2.43042,3291.6,3291.5,0.005]
[1722306552728,4.86084,3291.6,3291.5,0.005]
[1722306553029,0.06726989,3291.6,3291.5,0.005]
[1722306553225,12.79974,3292.6,3291.5,2.5006]
[1722306553467,0.06711953,3291.6,3291.5,0.005]
[1722306553665,2.43042,3291.6,3291.5,0.005]
[1722306553869,4.92795953,3291.6,3291.5,0.005]
[1722306554022,7.35837953,3291.6,3291.5,0.005]
[1722306554228,7.92795953,3291.6,3291.5,0.005]
[1722306554500,4.86174,3291.0,3290.9,0.005]
[1722306554776,5.41174,3291.0,3290.9,0.005]
[1722306554973,5.47864004,3291.0,3290.9,0.005]
[1722306555670,10.90951004,3291.0,3290.9,0.005]
[1722306556603,10.90951004,3291.0,3290.6,35.0]
[1722306556604,7.29327,3290.7,3290.6,35.0]
[1722306556803,10.84327,3290.7,3290.6,35.0]
[1722306557098,10.90901092,3290.7,3290.6,35.0]
[1722306557401,7.29348,3290.6,3289.4,0.005]
[1722306557600,10.84348,3290.6,3289.4,0.005]
[1722306557804,8.41232,3290.6,3289.5,35.0]
[1722306557966,8.47806092,3290.6,3289.5,35.0]
[1722306559578,8.47806092,3290.6,3289.4,0.005]
[1722306560105,8.47806092,3290.6,3290.5,35.1463045]
[1722306560503,8.41232,3290.6,3290.5,0.1463045]
[1722306561002,8.47747734,3290.6,3290.5,0.1463045]
[1722306562217,8.47747734,3290.6,3290.5,35.1463045]
[1722306562423,8.41232,3290.6,3290.5,35.1463045]
[1722306562642,0.61512689,3290.6,3290.5,35.1463045]
[1722306562782,2.43094,3291.0,3290.5,37.423349]
[1722306563106,2.2599,3291.5,3290.5,35.1463045]
[1722306563107,0.06321894,3290.6,3290.5,35.1463045]
[1722306563315,2.2599,3291.5,3290.5,35.1463045]
[1722306563316,2.43103,3290.8,3290.5,35.1463045]
[1722306563679,0.06332491,3290.7,3290.5,35.1463045]
[1722306563899,2.43095,3290.9,3290.5,35.1463045]
[1722306564336,5.4308,3291.1,3290.5,35.1463045]
[1722306564485,0.06332491,3290.8,3290.5,35.1463045]
[1722306564684,2.43081,3291.1,3290.5,35.1463045]
[1722306564936,2.43101,3290.9,3290.5,35.1463045]
[1722306565383,2.43089,3291.0,3290.5,35.1463045]
[1722306565579,0.06133425,3290.8,3290.5,0.1463045]
[1722306565923,2.43043,3291.6,3290.5,2.5775445]
[1722306566220,2.43067,3291.3,3290.5,0.1463045]
[1722306566438,0.06136692,3291.5,3290.5,0.1463045]
[1722306566583,2.43042,3291.7,3291.0,35.0]
[1722306566787,0.06136692,3291.6,3291.0,35.0]
[1722306566987,2.43041,3291.7,3291.0,37.3387]
[1722306567217,0.06136692,3291.5,3291.0,37.3387]
[1722306567424,3.0,3291.6,3291.0,37.3387]
[1722306567629,0.06144039,3291.4,3291.0,38.33649238]
[1722306567808,2.43012,3292.1,3291.1,2.49153421]
[1722306568123,0.06144039,3291.3,3291.2,2.43072]
[1722306568331,7.37,3292.4,3291.5,2.43043]
[1722306568535,2.43,3292.2,3291.4,0.06075535]
[1722306568685,7.68736519,3293.2,3291.8,2.43027]
[1722306568686,0.06144039,3292.3,3291.8,2.43027]
[1722306569027,0.06144039,3292.3,3291.5,2.58783954]
[1722306569028,2.42947,3292.9,3291.9,0.06075076]
[1722306569224,0.06173419,3292.2,3292.0,2.43012]
[1722306569400,2.4296,3292.8,3292.1,0.06074417]
[1722306569586,2.4296,3292.8,3292.5,35.0]
[1722306569785,2.42941,3293.0,3292.5,35.0]
[1722306570246,2.42888,3293.7,3292.5,35.0]
[1722306570389,2.42969,3292.6,3292.5,35.0]
[1722306570892,4.85938,3292.6,3292.5,35.0]
[1722306571296,2.42969,3292.6,3292.5,35.0]
[1722306571605,2.4294,3293.0,3292.5,35.0]
[1722306571800,5.62501,3293.6,3292.5,35.0]
[1722306571801,2.42908,3293.5,3292.5,35.0]
[1722306572020,2.42896,3293.6,3292.5,37.3387]
[1722306572335,2.42918,3293.3,3292.6,0.06073861]
[1722306572489,2.42904,3293.5,3292.5,3.7569391]
[1722306572688,2.42913,3293.4,3292.6,0.06073514]
[1722306572890,2.42864,3294.1,3292.5,2.3387]
[1722306572891,2.42866,3294.0,3293.0,35.0]
[1722306573129,2.42904,3293.5,3293.0,35.0]
[1722306573332,2.42913,3293.4,3293.0,35.0]
[1722306573550,5.42895,3293.6,3293.0,35.0]
[1722306573690,2.42903,3293.5,3293.0,35.0]
[1722306573889,2.42911,3293.4,3293.0,35.0]
[1722306574089,2.42919,3293.3,3293.0,35.0]
[1722306574525,0.06296206,3293.2,3293.0,35.0]
[1722306575025,2.42891,3293.7,3293.0,35.0]
[1722306575230,0.06296206,3293.1,3293.0,35.0]
[1722306575473,3.0,3294.2,3293.0,35.0]
[1722306575634,0.06296206,3293.1,3293.0,35.0]
[1722306575948,4.92160206,3293.1,3293.0,35.0]
[1722306576128,4.85864,3293.1,3293.0,35.0]
[1722306577646,2.4298,3292.5,3292.0,2.2697]
[1722306577952,2.42948,3292.9,3292.0,2.2697]
[1722306578251,2.49259359,3292.8,3292.4,35.0]
[1722306578545,0.06304359,3292.8,3292.4,37.22747349]
[1722306578702,0.06304359,3292.8,3292.6,2.42967]
[1722306578902,7.37,3293.5,3292.8,2.2697]
[1722306579271,0.06308843,3293.4,3292.9,35.0]
[1722306579443,2.42903,3293.5,3292.9,35.0]
[1722306579600,2.42889,3293.7,3292.9,35.0]
[1722306579797,0.06310066,3293.4,3292.9,37.42946]
[1722306580026,2.42889,3293.7,3292.9,37.42946]
[1722306580238,0.06310066,3293.3,3292.9,35.0]
[1722306580540,2.42917,3293.3,3292.9,35.0]
[1722306581344,2.42938,3293.1,3292.9,35.0]
[1722306581944,2.42939,3293.0,3292.9,35.0]
[1722306582675,0.06333304,3293.0,3292.9,35.0]
[1722306583096,2.42922,3293.3,3292.9,35.0]
[1722306583278,2.42928,3293.2,3292.9,35.0]
[1722306583424,2.42883,3293.8,3292.9,35.0]
[1722306583626,0.06330857,3293.1,3292.9,35.0]
[1722306583949,2.4292,3293.3,3292.9,35.0]
[1722306584159,2.42907,3293.5,3292.9,35.0]
[1722306584346,2.42912,3293.4,3292.9,35.0]
[1722306584545,0.06331672,3293.4,3292.9,35.0]
[1722306584852,3.0,3293.7,3293.0,5.42041288]
[1722306585066,0.06331672,3293.3,3293.0,2.3714]
[1722306585243,2.4288,3293.8,3293.1,35.0]
[1722306585442,0.06331672,3293.2,3293.1,35.0]
[1722306585645,2.42859,3294.1,3293.1,37.42932]
[1722306585891,2.42844,3294.3,3293.3,2.42911]
[1722306586028,10.783,3295.3,3293.5,2.4866]
[1722306586029,2.4284,3294.4,3293.5,2.4866]
[1722306586227,10.783,3295.3,3293.5,4.91562]
[1722306586228,2.42822,3294.6,3293.5,4.91562]
[1722306586459,2.42844,3294.3,3293.7,35.0]
[1722306586650,2.42859,3294.1,3293.7,35.0]
[1722306586862,2.42814,3294.7,3293.7,38.04901288]
[1722306587070,2.42822,3294.6,3293.8,2.48950358]
[1722306587266,2.428,3294.9,3293.9,2.42872]
[1722306587267,2.42812,3294.8,3293.9,2.42872]
[1722306587515,2.428,3294.9,3293.8,0.06071358]
[1722306587516,2.42801,3294.9,3294.1,2.42856]
[1722306587653,2.42801,3294.9,3294.1,0.06070856]
[1722306588020,2.42801,3294.9,3294.2,2.4866]
[1722306588174,2.42785,3295.1,3294.3,35.0]
[1722306588767,2.4281,3294.8,3294.3,35.0]
[1722306588972,2.428,3294.9,3294.3,35.0]
[1722306589294,2.42807,3294.8,3294.3,35.0]
[1722306591654,2.42792,3295.0,3294.4,0.06070512]
[1722306591899,0.06401746,3294.7,3294.4,0.06070512]
[1722306592053,12.79744,3295.7,3294.4,0.06070512]
[1722306592054,2.42793,3295.0,3294.4,0.06070512]
[1722306592259,0.06408259,3294.6,3294.5,35.0]
[1722306592459,2.4282,3294.7,3294.5,35.0]
[1722306592713,2.42792,3295.0,3294.5,35.0]
[1722306593310,2.42812,3294.8,3294.5,35.0]
[1722306593677,2.42792,3295.0,3294.5,35.0]
[1722306593858,0.06486476,3294.7,3294.5,35.0]
[1722306594056,2.42797,3295.0,3294.5,35.0]
[1722306594261,0.06489733,3294.6,3294.5,35.0]
[1722306594479,2.42797,3295.0,3294.5,35.0]
[1722306594676,0.06489733,3294.6,3294.5,35.0]
[1722306595002,2.42785,3295.1,3294.5,37.47194456]
[1722306595208,2.42785,3295.1,3294.5,35.0]
[1722306595702,0.06489733,3295.0,3294.5,35.0]
[1722306596114,0.06489733,3295.0,3294.6,0.06069729]
[1722306596406,9.79744,3295.7,3294.5,35.0]
[1722306596605,2.4282,3294.7,3294.5,35.0]
[1722306596906,2.42799,3294.9,3294.5,35.0]
[1722306597468,2.42793,3295.0,3294.5,35.0]
[1722306597877,2.42744,3295.7,3294.6,0.06070042]
[1722306598128,0.06501946,3294.9,3294.6,3.04901288]
[1722306598303,2.42793,3295.0,3294.7,0.06069683]
[1722306598505,2.42777,3295.2,3294.5,35.0]
[1722306598506,3.413,3295.8,3294.5,35.0]
[1722306598714,4.85642,3294.6,3293.7,2.2969]
[1722306599013,2.42876,3293.9,3293.7,2.2969]
[1722306599212,2.4288,3293.8,3293.7,2.2969]
[1722306599499,2.49375397,3293.8,3292.9,4.86025]
[1722306599708,0.06493397,3293.8,3293.0,0.486025]
[1722306599896,2.49373397,3293.8,3293.7,35.0]
[1722306600102,2.42939,3293.0,3292.9,2.4308]
[1722306600409,2.42864,3294.1,3292.1,4.86084]
[1722306600410,2.42947,3292.9,3292.1,4.86084]
[1722306600644,2.42937,3293.1,3292.8,35.0]
[1722306600768,3.0,3293.8,3292.9,2.4308]
[1722306600969,5.62405,3294.9,3292.9,2.4308]
[1722306600970,7.37,3294.5,3293.2,2.42919]
[1722306601167,2.4289,3293.7,3293.3,0.06072099]
[1722306601498,2.42858,3294.1,3293.3,0.06072099]
[1722306601667,2.42826,3294.6,3293.4,35.0]
[1722306601862,2.42863,3294.1,3293.4,35.0]
[1722306602100,5.42826,3294.6,3293.4,35.0]
[1722306602101,3.0,3294.2,3293.4,35.0]
[1722306602274,2.42859,3294.1,3293.4,35.0]
[1722306602473,2.42839,3294.4,3293.6,2.3489]
[1722306602683,2.42844,3294.3,3293.7,0.06071574]
[1722306603003,3.0,3294.6,3293.7,0.06071574]
[1722306603004,5.42827,3294.6,3293.7,0.06071574]
[1722306603174,2.42844,3294.3,3293.6,2.3489]
[1722306603365,2.42851,3294.2,3293.7,0.29560093]
[1722306603563,2.42851,3294.2,3293.8,35.0]
[1722306603864,2.42836,3294.4,3293.9,0.06071186]
[1722306604110,2.42842,3294.4,3293.9,0.06071186]
[1722306604584,2.42845,3294.3,3294.0,35.0]
[1722306604911,2.42778,3295.2,3294.2,2.3702]
[1722306605105,2.428,3294.9,3294.3,0.06070217]
[1722306605292,2.42829,3294.5,3294.2,2.3702]
[1722306605605,2.42799,3295.0,3294.4,35.0]
[1722306605864,2.4278,3295.2,3294.5,0.060697]
[1722306606035,9.79737,3295.8,3294.6,1.47197129]
[1722306606036,2.4277,3295.3,3294.6,1.47197129]
[1722306606358,2.4277,3295.3,3294.4,35.0]
[1722306606359,2.4277,3295.3,3294.7,0.06069649]
[1722306606635,2.42783,3295.2,3294.7,0.06069649]
[1722306606836,2.42794,3295.0,3294.7,0.06069649]
[1722306607203,2.42776,3295.3,3294.5,0.06069676]
[1722306607401,2.42755,3295.5,3294.7,2.3024]
[1722306607602,2.42755,3295.5,3294.8,0.06069154]
[1722306607804,2.4269,3296.4,3294.8,2.428]
[1722306608123,2.42756,3295.5,3295.4,35.0]
[1722306608524,4.85512,3295.5,3295.4,35.0]
[1722306609125,7.28268,3295.5,3295.4,35.0]
[1722306609311,4.85512,3295.5,3295.4,35.0]
[1722306610002,4.85511,3295.5,3295.4,35.0]
[1722306610201,7.28266,3295.5,3295.4,35.0]
[1722306610541,2.4281,3294.8,3293.8,2.3039]
[1722306610725,2.42793,3295.0,3293.9,1.04658581]
[1722306610925,2.428,3294.9,3294.1,2.42857]
[1722306611125,2.42809,3294.8,3294.0,37.4286]
[1722306611302,2.42799,3294.9,3294.2,2.4061]
[1722306611634,2.42785,3295.1,3294.3,2.48911834]
[1722306611839,2.42785,3295.1,3294.4,0.48952183]
[1722306612042,2.42785,3295.1,3294.5,0.06069673]
[1722306612227,2.42805,3294.9,3294.6,35.0]
[1722306613257,4.85628,3294.7,3294.6,35.0]
[1722306613835,2.42814,3294.7,3294.6,35.0]
[1722306614846,2.42807,3294.8,3294.6,35.0]
[1722306615164,3.0,3295.4,3294.6,35.0]
[1722306615165,2.4277,3295.3,3294.6,35.95281562]
[1722306615327,2.4277,3295.3,3294.7,0.06069581]
[1722306615527,2.42785,3295.1,3294.7,0.06069581]
[1722306616358,2.42749,3295.6,3294.6,35.95281562]
[1722306616553,2.4279,3295.1,3294.6,35.95281562]
[1722306616725,2.4279,3295.1,3294.7,2.3645798]
[1722306616926,2.42792,3295.0,3294.7,2.30388388]
[1722306617166,2.42799,3294.9,3294.7,2.30388388]
[1722306617329,2.42799,3294.9,3294.6,35.95281562]
[1722306617528,2.42808,3294.8,3294.6,35.95281562]
[1722306617785,2.428,3294.9,3294.6,35.0]
[1722306618074,2.42784,3295.1,3294.6,35.0]
[1722306618224,2.42764,3295.4,3294.7,0.06069593]
[1722306618431,0.05674593,3295.0,3294.9,2.42799]
[1722306618731,1.55915924,3296.5,3294.8,2.3574]
[1722306618732,2.4277,3295.3,3294.8,2.3574]
[1722306618926,2.42742,3295.7,3295.2,35.0]
[1722306619240,2.42742,3295.7,3294.8,2.3574]
[1722306619241,2.42797,3295.0,3294.8,2.3574]
[1722306619426,2.42711,3296.1,3294.8,2.3574]
[1722306619427,2.42779,3295.2,3294.8,2.3574]
[1722306619943,2.42779,3295.2,3295.1,35.0]
[1722306620352,2.42736,3295.8,3295.1,38.04901288]
[1722306620677,2.42736,3295.8,3295.2,0.06068407]
[1722306620860,2.4272,3296.0,3295.2,2.48844407]
[1722306621059,2.4272,3296.0,3295.4,2.2536]
[1722306621382,7.37,3296.5,3295.5,0.0606806]
[1722306621548,2.42682,3296.5,3295.8,2.4273]
[1722306621881,2.42667,3296.7,3296.1,35.0]
[1722306622079,2.42646,3297.0,3296.2,0.06066628]
[1722306622384,2.42675,3296.6,3296.2,2.3681]
[1722306622541,2.42681,3296.5,3296.2,2.3681]
[1722306623039,2.42669,3296.7,3296.3,35.0]
[1722306623357,2.42653,3296.9,3296.3,35.0]
[1722306623678,2.4266,3296.8,3296.3,35.0]
[1722306623882,8.30600101,3297.5,3296.3,35.0]
[1722306623883,2.42688,3296.4,3296.3,35.0]
[1722306624235,2.42682,3296.5,3296.3,35.0]
[1722306624580,2.42688,3296.4,3296.3,35.0]
[1722306624886,2.42674,3296.6,3296.3,35.0]
[1722306625590,2.4266,3296.8,3296.3,38.04901288]
[1722306625782,2.42645,3297.0,3296.4,0.06066674]
[1722306625968,0.0517807,3296.7,3296.4,0.06066674]
[1722306626167,2.42653,3296.9,3296.4,0.06066674]
[1722306626645,0.05173583,3296.8,3296.2,0.06066259]